Workbook

Sheet Table for Chapter
B3: Measure | C3: Average Historic Performance | D3: Modification | E3: Proposed Targets | F3: Proposed Incentive Rates
B4: USAIDI | F4: (%/minute)
B5: Urban | C5: ='Incentive Rate Calculator (New)'!H30 -> 88.03 | D5: 0 | E5: =C5+D5 -> 88.03 | F5: ='Incentive Rate Calculator (New)'!H50 -> 0.0002017141893
B6: Rural Short | C6: ='Incentive Rate Calculator (New)'!H34 -> 184.24 | D6: 0 | E6: =C6+D6 -> 184.24 | F6: ='Incentive Rate Calculator (New)'!H63 -> 0.0002003247076
B7: Rural long | C7: ='Incentive Rate Calculator (New)'!H38 -> 295.08 | D7: 0 | E7: 295.08 | F7: ='Incentive Rate Calculator (New)'!H75 -> 7.91971853e-05
B8: USAIFI | F8: (%/0.01 Interruptions)
B9: Urban | C9: ='Incentive Rate Calculator (New)'!H29 -> 0.812 | D9: 0 | E9: 0.812 | F9: ='Incentive Rate Calculator (New)'!H48 -> 0.0145787357
B10: Rural Short | C10: ='Incentive Rate Calculator (New)'!H33 -> 1.506 | D10: 0 | E10: 1.506 | F10: ='Incentive Rate Calculator (New)'!H61 -> 0.01591731101
B11: Rural long | C11: ='Incentive Rate Calculator (New)'!H37 -> 2.146 | D11: 0 | E11: 2.146 | F11: ='Incentive Rate Calculator (New)'!H73 -> 0.007259865001
B12: MAIFI | F12: (%/0.01 Interruptions)
B13: Urban | C13: 2.941 | D13: 0 | E13: 2.941 | F13: ='Incentive Rate Calculator (New)'!H49 -> 0.001166298856
B14: Rural Short | C14: 4.948 | D14: 0 | E14: 4.948 | F14: ='Incentive Rate Calculator (New)'!H62 -> 0.001273384881
B15: Rural long | C15: 8.839 | D15: 0 | E15: 8.839 | F15: ='Incentive Rate Calculator (New)'!H74 -> 0.0005807892001

Sheet Incentive Rate Calculator (New)
H1: REG Period 1
A2: S-Factor Example of USAIDI and USAIFI | H2: 2027 | I2: 2028 | J2: 2029 | K2: 2030 | L2: 2031
H3: Year 1 | I3: Year 2 | J3: Year 3 | K3: Year 4 | L3: Year 5
Q4: CBD | R4: 95700 | S4: 1.5
B5: Year | G5: ="Energy - "&A7&" (MWh)" -> Energy - Urban (MWh) | H5: ='Energy Consumption forecast'!$L$4*1000000*H11 -> 3112094.458 | I5: ='Energy Consumption forecast'!$L$5*1000000*I11/SUM($I$11:$I$13) -> 3229609.828 | J5: ='Energy Consumption forecast'!$L$6*1000000*J11/SUM($J$11:$J$13) -> 3351574.323 | K5: ='Energy Consumption forecast'!$L$7*1000000*K11/SUM($K$11:$K$13) -> 3479674.663 | L5: ='Energy Consumption forecast'!$L$8*1000000*L11/SUM($L$11:$L$13) -> 3603650.585 | Q5: Urban | R5: 47850 | S5: 1.5
A6: VCR | G6: ="Energy - "&A8&" (MWh)" -> Energy - Short Rural (MWh) | H6: ='Energy Consumption forecast'!$L$4*1000000*H12 -> 3090657.204 | I6: ='Energy Consumption forecast'!$L$5*1000000*I12/SUM($I$11:$I$13) -> 3207363.085 | J6: ='Energy Consumption forecast'!$L$6*1000000*J12/SUM($J$11:$J$13) -> 3328487.444 | K6: ='Energy Consumption forecast'!$L$7*1000000*K12/SUM($K$11:$K$13) -> 3455705.382 | L6: ='Energy Consumption forecast'!$L$8*1000000*L12/SUM($L$11:$L$13) -> 3578827.312 | Q6: Short Rural | R6: 47850 | S6: 1.5
A7: Urban | B7: 2023-09-01 | C7: ='VCR Calculation'!O7*1000 -> 44899.54991 | G7: ="Energy - "&A9&" (MWh)" -> Energy - Long Rural (MWh) | H7: ='Energy Consumption forecast'!$L$4*1000000*H13 -> 1221872.999 | I7: ='Energy Consumption forecast'!$L$5*1000000*I13/SUM($I$11:$I$13) -> 1268011.977 | J7: ='Energy Consumption forecast'!$L$6*1000000*J13/SUM($J$11:$J$13) -> 1315897.775 | K7: ='Energy Consumption forecast'!$L$7*1000000*K13/SUM($K$11:$K$13) -> 1366192.632 | L7: ='Energy Consumption forecast'!$L$8*1000000*L13/SUM($L$11:$L$13) -> 1414868.157 | Q7: Long Rural | R7: 47850 | S7: 1.5
A8: Short Rural | B8: 2023-09-01 | C8: ='VCR Calculation'!O6*1000 -> 43743.09199
A9: Long Rural | B9: 2023-09-01 | C9: ='VCR Calculation'!O7*1000 -> 44899.54991
A11: Ratio | G11: ="Customers - "&A7 -> Customers - Urban | H11: ='Share of customer calculation'!B17 -> 0.4191584894 | I11: =H11 -> 0.4191584894 | J11: =I11 -> 0.4191584894 | K11: 0.4191584894 | L11: 0.4191584894 | M11: * use the average customer share from RY 22 to RY 24 to split total energy delivered, this is because RY 21 is affected by COVID where the share of customer at shorrual is abnormally high while the share for urban is low,
A12: =A7 -> Urban | C12: =VLOOKUP(A12,Q4:S6,3,FALSE) -> 1.5 | G12: ="Customers - "&A8 -> Customers - Short Rural | H12: ='Share of customer calculation'!C17 -> 0.4162711713 | I12: =H12 -> 0.4162711713 | J12: 0.4162711713 | K12: 0.4162711713 | L12: 0.4162711713
A13: Short Rural | C13: =VLOOKUP(A13,Q4:S6,3,FALSE) -> 1.5 | G13: Customers - Long Rural | H13: ='Share of customer calculation'!D17 -> 0.1645703393 | I13: 0.1645703393 | J13: 0.1645703393 | K13: 0.1645703393 | L13: 0.1645703393
A14: Long Rural | C14: =VLOOKUP(A14,Q5:S7,3,FALSE) -> 1.5
H15: =H2 -> 2027 | I15: =I2 -> 2028 | J15: =J2 -> 2029 | K15: =K2 -> 2030 | L15: =L2 -> 2031
A16: CPI | G16: DUOS Revenue | H16: 827.4588405 | I16: 906.9541072 | J16: 994.0866087 | K16: 1089.590066 | L16: 1194.26869 | M16: *the revenue forecast will change
A17: CPI (September 2023 - June 2026) | C17: =Inflation!F86/Inflation!F75-1 -> 0.08833972506 | G17: Deflator | H17: =Inflation!F90/Inflation!F86 -> 1.025 | I17: =Inflation!F94/Inflation!F86 -> 1.050625 | J17: =1.025^3 -> 1.076890625 | K17: =1.025^4 -> 1.103812891 | L17: =1.025^5 -> 1.131408213 | M17: *apply the RBA long term forecast of 2.5%
G18: DUOS $2021 | H18: =H16/H17 -> 807.2769176 | I18: =I16/I17 -> 863.2519759 | J18: 923.1082393 | K18: 987.1148229 | L18: 1055.559502
G20: Average for Reg Period
G21: =G5 -> Energy - Urban (MWh) | H21: =AVERAGE(H5:L5) -> 3355320.771
G22: =G6 -> Energy - Short Rural (MWh) | H22: =AVERAGE(H6:L6) -> 3332208.085
G23: =G7 -> Energy - Long Rural (MWh) | H23: =AVERAGE(H7:L7) -> 1317368.708
G25: =G16 -> DUOS Revenue | H25: =AVERAGE(H18:L18) -> 927.2622916
H26: =H25*1000000 -> 927262291.6
G29: =A7&" - USAIFI" -> Urban - USAIFI | H29: 0.812 | I29: =H29 -> 0.812 | J29: 0.812 | K29: 0.812 | L29: 0.812 | M29: *update when RY 25 actual data is available
G30: =A7&" - USAIDI" -> Urban - USAIDI | H30: 88.03 | I30: 88.03 | J30: 88.03 | K30: 88.03 | L30: 88.03
G31: =A7&" - CAIDI" -> Urban - CAIDI
G33: =A8&" - USAIFI" -> Short Rural - USAIFI | H33: 1.506 | I33: =H33 -> 1.506 | J33: 1.506 | K33: 1.506 | L33: 1.506
G34: =A8&" - USAIDI" -> Short Rural - USAIDI | H34: 184.24 | I34: 184.24 | J34: 184.24 | K34: 184.24 | L34: 184.24
G35: =A8&" - CAIDI" -> Short Rural - CAIDI
G37: =A14&" - USAIFI" -> Long Rural - USAIFI | H37: 2.146 | I37: =H37 -> 2.146 | J37: 2.146 | K37: 2.146 | L37: 2.146
G38: =A14&" - USAIDI" -> Long Rural - USAIDI | H38: 295.08 | I38: 295.08 | J38: 295.08 | K38: 295.08 | L38: 295.08
G39: =A14&" - USAIFI" -> Long Rural - USAIFI
A41: =A7&" Incentive Rate Calculator" -> Urban Incentive Rate Calculator
C42: STPIS Formula (1) | E42: $VCR in $Year0 | G42: ="VCR - "&A7 -> VCR - Urban | H42: =($C$7*(1+C17)) -> 48865.9638
C43: STPIS Formula (2) | E43: VCR Split | G43: VCRSAIFI | H43: =H42/(1+$C$12) -> 19546.38552
E44: VCR Split | G44: VCRSAIDI | H44: =H42-H43 -> 29319.57828
C45: STPIS Formula (3) | E45: (VCR * Energy(MWh)) / Revenue ($)) | G45: (3) | H45: =((H43*((H21)))/(H26)) -> 70.72906333
C46: STPIS Formula (4) | E46: (3) / Per Minute | G46: Factor | H46: =H45/(365.25*24*60) -> 0.0001344761262
C47: STPIS Formula (5) | E47: Factor * CAIDI | H47: =H46*(H30/H29) -> 0.0145787357
C48: STPIS Formula (6) | E48: Expressed as Per SAIFI | G48: %0.01/USAIFI | H48: =H47 -> 0.0145787357 | I48: =H48 -> 0.0145787357 | J48: 0.0145787357 | K48: 0.0145787357 | L48: 0.0145787357
E49: MAIFI (8% SAIFI) | G49: %0.01/UMAIFI | H49: =H48*0.08 -> 0.001166298856 | I49: 0.001166298856 | J49: 0.001166298856 | K49: 0.001166298856 | L49: 0.001166298856
E50: Expressed as Per SAIDI | G50: % USAIDI | H50: =(((($C$7*(1+C17))*((1-(1/(1+$C$12))))*(H21))/(H26))/(365.25*24*60)) -> 0.0002017141893 | I50: 0.0002017141893 | J50: 0.0002017141893 | K50: 0.0002017141893 | L50: 0.0002017141893
A54: =A8&" Incentive Rate Calculator" -> Short Rural Incentive Rate Calculator
C55: STPIS Formula (1) | E55: $VCR in $Year0 | G55: ="VCR - "&A8 -> VCR - Short Rural | H55: =($C$8*(1+C17)) -> 47607.34471
C56: STPIS Formula (2) | E56: VCR Split | G56: VCRSAIFI | H56: =H55/(1+$C$13) -> 19042.93788
E57: VCR Split | G57: VCRSAIDI | H57: =H55-H56 -> 28564.40683
C58: STPIS Formula (3) | E58: (VCR * Energy(MWh)) / Revenue ($)) | G58: (3) | H58: =((H56*((H22)))/(H26)) -> 68.43266696
C59: STPIS Formula (4) | E59: (3) / Per Minute | G59: Factor | H59: =H58/(365.25*24*60) -> 0.0001301100216
C60: STPIS Formula (5) | E60: Factor * CAIDI | H60: =H59*H34/H33 -> 0.01591731101
C61: STPIS Formula (6) | E61: Expressed as Per SAIFI | G61: %0.01/USAIFI | H61: =H60 -> 0.01591731101 | I61: =H61 -> 0.01591731101 | J61: =I61 -> 0.01591731101 | K61: 0.01591731101 | L61: 0.01591731101
E62: MAIFI (8% SAIFI) | G62: %0.01/UMAIFI | H62: =H61*0.08 -> 0.001273384881 | I62: 0.001273384881 | J62: 0.001273384881 | K62: 0.001273384881 | L62: 0.001273384881
E63: Expressed as Per SAIDI | G63: % USAIDI | H63: =((($C$7*(1+C17)*((1-(1/(1+$C$13))))*(H22))/(H26))/(365.25*24*60)) -> 0.0002003247076 | I63: =H63 -> 0.0002003247076 | J63: 0.0002003247076 | K63: 0.0002003247076 | L63: 0.0002003247076
A66: =A14&" Incentive Rate Calculator" -> Long Rural Incentive Rate Calculator
C67: STPIS Formula (1) | E67: $VCR in $Year0 | G67: ="VCR - "&A14 -> VCR - Long Rural | H67: =($C$9*(1+C17)) -> 48865.9638
C68: STPIS Formula (2) | E68: VCR Split | G68: VCRSAIFI | H68: =H67/(1+$C$13) -> 19546.38552
E69: VCR Split | G69: VCRSAIDI | H69: =H67-H68 -> 29319.57828
C70: STPIS Formula (3) | E70: (VCR * Energy(MWh)) / Revenue ($)) | G70: (3) | H70: =((H68*((H23)))/(H26)) -> 27.76970105
C71: STPIS Formula (4) | E71: (3) / Per Minute | G71: Factor | H71: =H70/(365.25*24*60) -> 5.279812353e-05
C72: STPIS Formula (5) | E72: Factor * CAIDI | H72: =H71*H38/H37 -> 0.007259865001
C73: STPIS Formula (6) | E73: Expressed as Per SAIFI | G73: %0.01/USAIFI | H73: =H72 -> 0.007259865001 | I73: =H73 -> 0.007259865001 | J73: =I73 -> 0.007259865001 | K73: =J73 -> 0.007259865001 | L73: =K73 -> 0.007259865001
E74: MAIFI (8% SAIFI) | G74: %0.01/UMAIFI | H74: =H73*0.08 -> 0.0005807892001 | I74: 0.0005807892001 | J74: 0.0005807892001 | K74: 0.0005807892001 | L74: 0.0005807892001
E75: Expressed as Per SAIDI | G75: % USAIDI | H75: =((($C$7*(1+C17)*((1-(1/(1+$C$13))))*(H23))/(H26))/(365.25*24*60)) -> 7.91971853e-05 | I75: =H75 -> 7.91971853e-05 | J75: =I75 -> 7.91971853e-05 | K75: =J75 -> 7.91971853e-05 | L75: =K75 -> 7.91971853e-05

Sheet VCR Calculation
C3: % Energy | G3: $VCR Value (kWh) | K3: VCR_Weighted
C4: Commercial | D4: Agri | E4: Indust | F4: Res | G4: Commercial | H4: Agri | I4: Indust | J4: Res | K4: Commercial | L4: Agri | M4: Indust | N4: Res | O4: Total_VCR
B5: Long rural | C5: 0.2532855474 | D5: 0.2103524704 | E5: 0.1389587503 | F5: 0.3974032318 | G5: 52.2 | H5: 44.4 | I5: 74.79 | J5: 25.13 | K5: =G5*C5 -> 13.22150558 | L5: =H5*D5 -> 9.339649685 | M5: 10.39272494 | N5: 9.986743216 | O5: =SUM(K5:N5) -> 42.94062342
B6: Short rural | C6: 0.2908150778 | D6: 0.06045280748 | E6: 0.1928272701 | F6: 0.4559048446 | G6: =G5 -> 52.2 | H6: =H5 -> 44.4 | I6: 74.79 | J6: 25.13 | K6: =G6*C6 -> 15.18054706 | L6: =H6*D6 -> 2.684104652 | M6: =I6*E6 -> 14.42155153 | N6: =J6*F6 -> 11.45688874 | O6: =SUM(K6:N6) -> 43.74309199
B7: Urban | C7: 0.4815618236 | D7: 0.001421239278 | E7: 0.1350439803 | F7: 0.3819729568 | G7: =G6 -> 52.2 | H7: 44.4 | I7: 74.79 | J7: 25.13 | K7: 25.13752719 | L7: 0.06310302396 | M7: 10.09993929 | N7: 9.598980405 | O7: 44.89954991
C9: VCR Rates as of September 2023
C10: https://www.aer.gov.au/documents/aer-value-customer-reliability-update-summary-december-2023

Sheet Share of customer calculation
A3: Average of Avg FdrClass Cust | B3: Column Labels | H3: Note: | I3: ELM15 (Short Rural) was inadvertently omitted in the RY21 (STPIS1) submission.
A4: Row Labels | B4: URBAN | C4: RURAL SHORT | D4: RURAL LONG | E4: TOTAL | I4: This is the main reason why this version of STPIS2 recast, the Short Rural USAIDI is about 2.4mins higher than the STPIS1 value.
A5: RY21 | B5: 308958.5 | C5: 325369.5 | D5: 125639.5 | E5: =SUM(B5:D5) -> 759967.5 | F5: actual | I5: 4.14 | J5: Total Short Rural USAIDI minutes unaccounted in the RY21 STPIS1 from ELM15
A6: RY22 | B6: 334819 | C6: 315746 | D6: 127846.5 | E6: =SUM(B6:D6) -> 778411.5 | F6: actual | I6: 2.39 | J6: Net Short Rural USAIDI minutes unaccounted in the RY21 STPIS1 from ELM15
A7: RY23 | B7: 334918.5 | C7: 330339 | D7: 130646.5 | E7: 795904 | F7: actual
A8: RY24 | B8: 367629.5 | C8: 306124 | D8: 135536 | E8: 809289.5 | F8: actual
I9: Datalink Source: | J9: "G:\01 Distribution\Regulatory\2024 Review for EDPR FY2731\Tableau\NOS_CA_RIN_Summary.csv"
A10: RY25 | B10: 359189.0482 | C10: 325794.1574 | D10: 138016.7944 | E10: 823000 | F10: forecast
B13: URBAN | C13: RURAL SHORT | D13: RURAL LONG | E13: TOTAL
A14: RY22 | B14: =GETPIVOTDATA("Avg FdrClass Cust",$A$3,"Feeder classification","URBAN","AER_RY","RY21")/$E5 -> 0.4065417271 | C14: =GETPIVOTDATA("Avg FdrClass Cust",$A$3,"Feeder classification","RURAL SHORT","AER_RY","RY21")/E5 -> 0.4281360716 | D14: =GETPIVOTDATA("Avg FdrClass Cust",$A$3,"Feeder classification","RURAL LONG","AER_RY","RY21")/E5 -> 0.1653222013 | E14: =SUM(B14:D14) -> 1
A15: RY23 | B15: =GETPIVOTDATA("Avg FdrClass Cust",$A$3,"Feeder classification","URBAN","AER_RY","RY22")/E6 -> 0.4301311067 | C15: =GETPIVOTDATA("Avg FdrClass Cust",$A$3,"Feeder classification","RURAL SHORT","AER_RY","RY22")/E6 -> 0.4056286424 | D15: =GETPIVOTDATA("Avg FdrClass Cust",$A$3,"Feeder classification","RURAL LONG","AER_RY","RY22")/E6 -> 0.1642402508 | E15: =SUM(B15:D15) -> 1
A16: RY24 | B16: =GETPIVOTDATA("Avg FdrClass Cust",$A$3,"Feeder classification","URBAN","AER_RY","RY23")/E7 -> 0.4208026345 | C16: =GETPIVOTDATA("Avg FdrClass Cust",$A$3,"Feeder classification","RURAL SHORT","AER_RY","RY23")/E7 -> 0.4150487999 | D16: =GETPIVOTDATA("Avg FdrClass Cust",$A$3,"Feeder classification","RURAL LONG","AER_RY","RY23")/E7 -> 0.1641485657 | E16: 1
A17: Average | B17: =AVERAGE(B14:B16) -> 0.4191584894 | C17: =AVERAGE(C14:C16) -> 0.4162711713 | D17: 0.1645703393 | E17: 1

Sheet Source data >>

Sheet Energy Consumption forecast
A1: asset_type | B1: asset | C1: demand_year | D1: scenario | E1: Base_Load | F1: PV_Generation | G1: EV_Load | H1: Gas_Load | I1: Operational_Demand | K1: Reg Year | L1: Operational_Demand
A2: network | B2: network | C2: 2024 | D2: Step Change | E2: =I2-H2-G2-F2 -> 8.473012884 | F2: =GETPIVOTDATA("value",[5]Pivot!$A$3,"demand_type","PV_Generation","demand_year",C2) -> -1.631972795 | G2: =GETPIVOTDATA("value",[5]Pivot!$A$3,"demand_type","EV_Load","demand_year",C2) -> 0.04294399232 | H2: =GETPIVOTDATA("value",[5]Pivot!$A$3,"demand_type","Gas_Load","demand_year",C2) -> 0.1322770496 | I2: =GETPIVOTDATA("value",[5]Pivot!$A$3,"demand_type","Operational_Demand_Actual_Residuals","demand_year",C2) -> 7.016261132 | K2: 2024-25 | L2: =9/12*I2+3/12*I3 -> 7.048624037
A3: network | B3: network | C3: 2025 | D3: Step Change | E3: =I3-H3-G3-F3 -> 8.625170376 | F3: =GETPIVOTDATA("value",[5]Pivot!$A$3,"demand_type","PV_Generation","demand_year",C3) -> -1.804647025 | G3: =GETPIVOTDATA("value",[5]Pivot!$A$3,"demand_type","EV_Load","demand_year",C3) -> 0.08849893802 | H3: =GETPIVOTDATA("value",[5]Pivot!$A$3,"demand_type","Gas_Load","demand_year",C3) -> 0.2366904649 | I3: =GETPIVOTDATA("value",[5]Pivot!$A$3,"demand_type","Operational_Demand_Actual_Residuals","demand_year",C3) -> 7.145712753 | K3: 2025-26 | L3: =9/12*I3+3/12*I4 -> 7.197995669
A4: network | B4: network | C4: 2026 | D4: Step Change | E4: 8.781234194 | F4: =GETPIVOTDATA("value",[5]Pivot!$A$3,"demand_type","PV_Generation","demand_year",C4) -> -1.950187085 | G4: =GETPIVOTDATA("value",[5]Pivot!$A$3,"demand_type","EV_Load","demand_year",C4) -> 0.1461927045 | H4: =GETPIVOTDATA("value",[5]Pivot!$A$3,"demand_type","Gas_Load","demand_year",C4) -> 0.3776046003 | I4: =GETPIVOTDATA("value",[5]Pivot!$A$3,"demand_type","Operational_Demand_Actual_Residuals","demand_year",C4) -> 7.354844414 | K4: 2026-27 | L4: =9/12*I4+3/12*I5 -> 7.424624661
A5: network | B5: network | C5: 2027 | D5: Step Change | E5: 8.940701624 | F5: =GETPIVOTDATA("value",[5]Pivot!$A$3,"demand_type","PV_Generation","demand_year",C5) -> -2.073791253 | G5: =GETPIVOTDATA("value",[5]Pivot!$A$3,"demand_type","EV_Load","demand_year",C5) -> 0.2159403129 | H5: =GETPIVOTDATA("value",[5]Pivot!$A$3,"demand_type","Gas_Load","demand_year",C5) -> 0.5511147171 | I5: =GETPIVOTDATA("value",[5]Pivot!$A$3,"demand_type","Operational_Demand_Actual_Residuals","demand_year",C5) -> 7.633965401 | K5: 2027-28 | L5: 7.70498489
A6: network | B6: network | C6: 2028 | D6: Step Change | E6: 9.099680261 | F6: =GETPIVOTDATA("value",[5]Pivot!$A$3,"demand_type","PV_Generation","demand_year",C6) -> -2.167766768 | G6: =GETPIVOTDATA("value",[5]Pivot!$A$3,"demand_type","EV_Load","demand_year",C6) -> 0.3066065368 | H6: =GETPIVOTDATA("value",[5]Pivot!$A$3,"demand_type","Gas_Load","demand_year",C6) -> 0.6795233278 | I6: =GETPIVOTDATA("value",[5]Pivot!$A$3,"demand_type","Operational_Demand_Actual_Residuals","demand_year",C6) -> 7.918043358 | K6: 2028-29 | L6: 7.995959542
A7: network | B7: network | C7: 2029 | D7: Step Change | E7: 9.258149449 | F7: =GETPIVOTDATA("value",[5]Pivot!$A$3,"demand_type","PV_Generation","demand_year",C7) -> -2.253633644 | G7: =GETPIVOTDATA("value",[5]Pivot!$A$3,"demand_type","EV_Load","demand_year",C7) -> 0.4121456013 | H7: =GETPIVOTDATA("value",[5]Pivot!$A$3,"demand_type","Gas_Load","demand_year",C7) -> 0.813046689 | I7: =GETPIVOTDATA("value",[5]Pivot!$A$3,"demand_type","Operational_Demand_Actual_Residuals","demand_year",C7) -> 8.229708096 | K7: 2029-30 | L7: 8.301572676
A8: network | B8: network | C8: 2030 | D8: Step Change | E8: 9.416211275 | F8: =GETPIVOTDATA("value",[5]Pivot!$A$3,"demand_type","PV_Generation","demand_year",C8) -> -2.344774434 | G8: =GETPIVOTDATA("value",[5]Pivot!$A$3,"demand_type","EV_Load","demand_year",C8) -> 0.5227981376 | H8: =GETPIVOTDATA("value",[5]Pivot!$A$3,"demand_type","Gas_Load","demand_year",C8) -> 0.9229314385 | I8: =GETPIVOTDATA("value",[5]Pivot!$A$3,"demand_type","Operational_Demand_Actual_Residuals","demand_year",C8) -> 8.517166418 | K8: 2030-31 | L8: 8.597346054
A9: network | B9: network | C9: 2031 | D9: Step Change | E9: 9.579782625 | F9: =GETPIVOTDATA("value",[5]Pivot!$A$3,"demand_type","PV_Generation","demand_year",C9) -> -2.434332236 | G9: =GETPIVOTDATA("value",[5]Pivot!$A$3,"demand_type","EV_Load","demand_year",C9) -> 0.6569951999 | H9: =GETPIVOTDATA("value",[5]Pivot!$A$3,"demand_type","Gas_Load","demand_year",C9) -> 1.035439372 | I9: =GETPIVOTDATA("value",[5]Pivot!$A$3,"demand_type","Operational_Demand_Actual_Residuals","demand_year",C9) -> 8.837884961 | K9: 2031-32 | L9: 8.919953154
A10: network | B10: network | C10: 2032 | D10: Step Change | E10: 9.749008742 | F10: =GETPIVOTDATA("value",[5]Pivot!$A$3,"demand_type","PV_Generation","demand_year",C10) -> -2.524761544 | G10: =GETPIVOTDATA("value",[5]Pivot!$A$3,"demand_type","EV_Load","demand_year",C10) -> 0.7960609858 | H10: =GETPIVOTDATA("value",[5]Pivot!$A$3,"demand_type","Gas_Load","demand_year",C10) -> 1.145849549 | I10: =GETPIVOTDATA("value",[5]Pivot!$A$3,"demand_type","Operational_Demand_Actual_Residuals","demand_year",C10) -> 9.166157733 | K10: 2032-33 | L10: 9.249920032
A11: network | B11: network | C11: 2033 | D11: Step Change | E11: 9.918002369 | F11: =GETPIVOTDATA("value",[5]Pivot!$A$3,"demand_type","PV_Generation","demand_year",C11) -> -2.609217893 | G11: =GETPIVOTDATA("value",[5]Pivot!$A$3,"demand_type","EV_Load","demand_year",C11) -> 0.9394823355 | H11: =GETPIVOTDATA("value",[5]Pivot!$A$3,"demand_type","Gas_Load","demand_year",C11) -> 1.252940116 | I11: =GETPIVOTDATA("value",[5]Pivot!$A$3,"demand_type","Operational_Demand_Actual_Residuals","demand_year",C11) -> 9.501206927 | K11: 2033-34 | L11: 9.586149013
A12: network | B12: network | C12: 2034 | D12: Step Change | E12: 10.08624403 | F12: =GETPIVOTDATA("value",[5]Pivot!$A$3,"demand_type","PV_Generation","demand_year",C12) -> -2.689837154 | G12: =GETPIVOTDATA("value",[5]Pivot!$A$3,"demand_type","EV_Load","demand_year",C12) -> 1.087012825 | H12: =GETPIVOTDATA("value",[5]Pivot!$A$3,"demand_type","Gas_Load","demand_year",C12) -> 1.357555571 | I12: =GETPIVOTDATA("value",[5]Pivot!$A$3,"demand_type","Operational_Demand_Actual_Residuals","demand_year",C12) -> 9.84097527 | K12: 2034-35 | L12: 9.926130558
A13: network | B13: network | C13: 2035 | D13: Step Change | E13: 10.25368387 | F13: =GETPIVOTDATA("value",[5]Pivot!$A$3,"demand_type","PV_Generation","demand_year",C13) -> -2.770504572 | G13: =GETPIVOTDATA("value",[5]Pivot!$A$3,"demand_type","EV_Load","demand_year",C13) -> 1.237844748 | H13: =GETPIVOTDATA("value",[5]Pivot!$A$3,"demand_type","Gas_Load","demand_year",C13) -> 1.460572377 | I13: =GETPIVOTDATA("value",[5]Pivot!$A$3,"demand_type","Operational_Demand_Actual_Residuals","demand_year",C13) -> 10.18159642 | K13: 2035-36 | L13: 10.26714373
A14: network | B14: network | C14: 2036 | D14: Step Change | E14: 10.42477748 | F14: =GETPIVOTDATA("value",[5]Pivot!$A$3,"demand_type","PV_Generation","demand_year",C14) -> -2.858019724 | G14: =GETPIVOTDATA("value",[5]Pivot!$A$3,"demand_type","EV_Load","demand_year",C14) -> 1.392189086 | H14: =GETPIVOTDATA("value",[5]Pivot!$A$3,"demand_type","Gas_Load","demand_year",C14) -> 1.564838808 | I14: =GETPIVOTDATA("value",[5]Pivot!$A$3,"demand_type","Operational_Demand_Actual_Residuals","demand_year",C14) -> 10.52378565
A15: network | B15: network | C15: 2037 | D15: Step Change | E15: 10.59917161 | F15: =GETPIVOTDATA("value",[5]Pivot!$A$3,"demand_type","PV_Generation","demand_year",C15) -> -2.947324212 | G15: =GETPIVOTDATA("value",[5]Pivot!$A$3,"demand_type","EV_Load","demand_year",C15) -> 1.549708198 | H15: =GETPIVOTDATA("value",[5]Pivot!$A$3,"demand_type","Gas_Load","demand_year",C15) -> 1.667937148 | I15: =GETPIVOTDATA("value",[5]Pivot!$A$3,"demand_type","Operational_Demand_Actual_Residuals","demand_year",C15) -> 10.86949275

Sheet PTRM

Sheet Inflation
S1: Worksheet check: | T1: =IF(COUNTA($T$5:$T$95)=COUNTIF($T5:$T96,"OK"),"OK","Check") -> OK | V1: Overall Check: | W1: ='[6]Check|List'!$S$1 -> Ok
B4: Input | General inputs
D6: Index value, new base | E6: Percentage Change from Corresponding Quarter of Previous Year | F6: Index value, new base | G6: Percentage Change from Corresponding Quarter of Previous Year
C7: Source | D7: ABS | E7: Calculated | F7: ABS | G7: Calculated
C8: Unit | D8: index | E8: Percent | F8: index | G8: Percent
C9: 2007-03-31 | D9: 155.6 | T9: =IF(C9>EOMONTH(DATE('[6]Input|General'!$G$12,MONTH('[6]Input|General'!$G$9),1),0),"Ok",IF(ISBLANK($D9),"Check","Ok")) -> Ok
C10: 2007-06-30 | D10: 157.5 | T10: =IF(C10>EOMONTH(DATE('[6]Input|General'!$G$12,MONTH('[6]Input|General'!$G$9),1),0),"Ok",IF(ISBLANK($D10),"Check","Ok")) -> Ok
C11: 2007-09-30 | D11: 158.6 | T11: =IF(C11>EOMONTH(DATE('[6]Input|General'!$G$12,MONTH('[6]Input|General'!$G$9),1),0),"Ok",IF(ISBLANK($D11),"Check","Ok")) -> Ok
C12: 2007-12-31 | D12: 160.1 | T12: =IF(C12>EOMONTH(DATE('[6]Input|General'!$G$12,MONTH('[6]Input|General'!$G$9),1),0),"Ok",IF(ISBLANK($D12),"Check","Ok")) -> Ok
C13: 2008-03-31 | D13: 162.2 | E13: =D13/D9-1 -> 0.04241645244 | T13: =IF(C13>EOMONTH(DATE('[6]Input|General'!$G$12,MONTH('[6]Input|General'!$G$9),1),0),"Ok",IF(ISBLANK($D13),"Check","Ok")) -> Ok
C14: 2008-06-30 | D14: 164.6 | E14: =D14/D10-1 -> 0.04507936508 | T14: =IF(C14>EOMONTH(DATE('[6]Input|General'!$G$12,MONTH('[6]Input|General'!$G$9),1),0),"Ok",IF(ISBLANK($D14),"Check","Ok")) -> Ok
C15: 2008-09-30 | D15: 166.5 | E15: 0.04981084489 | T15: =IF(C15>EOMONTH(DATE('[6]Input|General'!$G$12,MONTH('[6]Input|General'!$G$9),1),0),"Ok",IF(ISBLANK($D15),"Check","Ok")) -> Ok
C16: 2008-12-31 | D16: 166 | E16: 0.03685196752 | T16: =IF(C16>EOMONTH(DATE('[6]Input|General'!$G$12,MONTH('[6]Input|General'!$G$9),1),0),"Ok",IF(ISBLANK($D16),"Check","Ok")) -> Ok
C17: 2009-03-31 | D17: 166.2 | E17: 0.02466091245 | T17: =IF(C17>EOMONTH(DATE('[6]Input|General'!$G$12,MONTH('[6]Input|General'!$G$9),1),0),"Ok",IF(ISBLANK($D17),"Check","Ok")) -> Ok
C18: 2009-06-30 | D18: 167 | E18: 0.01458080194 | T18: =IF(C18>EOMONTH(DATE('[6]Input|General'!$G$12,MONTH('[6]Input|General'!$G$9),1),0),"Ok",IF(ISBLANK($D18),"Check","Ok")) -> Ok
C19: 2009-09-30 | D19: 168.6 | E19: 0.01261261261 | T19: =IF(C19>EOMONTH(DATE('[6]Input|General'!$G$12,MONTH('[6]Input|General'!$G$9),1),0),"Ok",IF(ISBLANK($D19),"Check","Ok")) -> Ok
C20: 2009-12-31 | D20: 169.5 | E20: 0.02108433735 | T20: =IF(C20>EOMONTH(DATE('[6]Input|General'!$G$12,MONTH('[6]Input|General'!$G$9),1),0),"Ok",IF(ISBLANK($D20),"Check","Ok")) -> Ok
C21: 2010-03-31 | D21: 171 | E21: 0.02888086643 | F21: 95.2 | T21: =IF(C21>EOMONTH(DATE('[6]Input|General'!$G$12,MONTH('[6]Input|General'!$G$9),1),0),"Ok",IF(ISBLANK($F21),"Check","Ok")) -> Ok
C22: 2010-06-30 | D22: 172.1 | E22: 0.03053892216 | F22: 95.8 | T22: =IF(C22>EOMONTH(DATE('[6]Input|General'!$G$12,MONTH('[6]Input|General'!$G$9),1),0),"Ok",IF(ISBLANK($F22),"Check","Ok")) -> Ok
C23: 2010-09-30 | D23: 173.3 | E23: 0.02787663108 | F23: 96.5 | T23: =IF(C23>EOMONTH(DATE('[6]Input|General'!$G$12,MONTH('[6]Input|General'!$G$9),1),0),"Ok",IF(ISBLANK($F23),"Check","Ok")) -> Ok
C24: 2010-12-31 | D24: 174 | E24: 0.02654867257 | F24: 96.9 | T24: =IF(C24>EOMONTH(DATE('[6]Input|General'!$G$12,MONTH('[6]Input|General'!$G$9),1),0),"Ok",IF(ISBLANK($F24),"Check","Ok")) -> Ok
C25: 2011-03-31 | D25: 176.7 | E25: 0.03333333333 | F25: 98.3 | G25: =IF(ISBLANK(F25),"",F25/F21-1) -> 0.03256302521 | T25: =IF(C25>EOMONTH(DATE('[6]Input|General'!$G$12,MONTH('[6]Input|General'!$G$9),1),0),"Ok",IF(ISBLANK($F25),"Check","Ok")) -> Ok
C26: 2011-06-30 | D26: 178.3 | E26: 0.03602556653 | F26: 99.2 | G26: =IF(ISBLANK(F26),"",F26/F22-1) -> 0.03549060543 | T26: =IF(C26>EOMONTH(DATE('[6]Input|General'!$G$12,MONTH('[6]Input|General'!$G$9),1),0),"Ok",IF(ISBLANK($F26),"Check","Ok")) -> Ok
C27: 2011-09-30 | D27: 179.4 | E27: 0.03519907675 | F27: 99.8 | G27: 0.03419689119 | T27: =IF(C27>EOMONTH(DATE('[6]Input|General'!$G$12,MONTH('[6]Input|General'!$G$9),1),0),"Ok",IF(ISBLANK($F27),"Check","Ok")) -> Ok
C28: 2011-12-31 | D28: 179.4 | E28: 0.03103448276 | F28: 99.8 | G28: 0.02992776058 | T28: =IF(C28>EOMONTH(DATE('[6]Input|General'!$G$12,MONTH('[6]Input|General'!$G$9),1),0),"Ok",IF(ISBLANK($F28),"Check","Ok")) -> Ok
C29: 2012-03-31 | D29: 179.5 | E29: 0.01584606678 | F29: 99.9 | G29: 0.01627670397 | T29: =IF(C29>EOMONTH(DATE('[6]Input|General'!$G$12,MONTH('[6]Input|General'!$G$9),1),0),"Ok",IF(ISBLANK($F29),"Check","Ok")) -> Ok
C30: 2012-06-30 | F30: 100.4 | G30: 0.01209677419 | T30: =IF(C30>EOMONTH(DATE('[6]Input|General'!$G$12,MONTH('[6]Input|General'!$G$9),1),0),"Ok",IF(ISBLANK($F30),"Check","Ok")) -> Ok
C31: 2012-09-30 | F31: 101.8 | G31: 0.02004008016 | T31: =IF(C31>EOMONTH(DATE('[6]Input|General'!$G$12,MONTH('[6]Input|General'!$G$9),1),0),"Ok",IF(ISBLANK($F31),"Check","Ok")) -> Ok
C32: 2012-12-31 | F32: 102 | G32: 0.02204408818 | T32: =IF(C32>EOMONTH(DATE('[6]Input|General'!$G$12,MONTH('[6]Input|General'!$G$9),1),0),"Ok",IF(ISBLANK($F32),"Check","Ok")) -> Ok
C33: 2013-03-31 | F33: 102.4 | G33: 0.02502502503 | T33: =IF(C33>EOMONTH(DATE('[6]Input|General'!$G$12,MONTH('[6]Input|General'!$G$9),1),0),"Ok",IF(ISBLANK($F33),"Check","Ok")) -> Ok
C34: 2013-06-30 | F34: 102.8 | G34: 0.02390438247 | T34: =IF(C34>EOMONTH(DATE('[6]Input|General'!$G$12,MONTH('[6]Input|General'!$G$9),1),0),"Ok",IF(ISBLANK($F34),"Check","Ok")) -> Ok
C35: 2013-09-30 | F35: 104 | G35: 0.02161100196 | T35: =IF(C35>EOMONTH(DATE('[6]Input|General'!$G$12,MONTH('[6]Input|General'!$G$9),1),0),"Ok",IF(ISBLANK($F35),"Check","Ok")) -> Ok
C36: 2013-12-31 | F36: 104.8 | G36: 0.02745098039 | T36: =IF(C36>EOMONTH(DATE('[6]Input|General'!$G$12,MONTH('[6]Input|General'!$G$9),1),0),"Ok",IF(ISBLANK($F36),"Check","Ok")) -> Ok
C37: 2014-03-31 | F37: 105.4 | G37: 0.029296875 | T37: =IF(C37>EOMONTH(DATE('[6]Input|General'!$G$12,MONTH('[6]Input|General'!$G$9),1),0),"Ok",IF(ISBLANK($F37),"Check","Ok")) -> Ok
C38: 2014-06-30 | F38: 105.9 | G38: 0.03015564202 | T38: =IF(C38>EOMONTH(DATE('[6]Input|General'!$G$12,MONTH('[6]Input|General'!$G$9),1),0),"Ok",IF(ISBLANK($F38),"Check","Ok")) -> Ok
C39: 2014-09-30 | F39: 106.4 | G39: 0.02307692308 | T39: =IF(C39>EOMONTH(DATE('[6]Input|General'!$G$12,MONTH('[6]Input|General'!$G$9),1),0),"Ok",IF(ISBLANK($F39),"Check","Ok")) -> Ok
C40: 2014-12-31 | F40: 106.6 | G40: 0.01717557252 | T40: =IF(C40>EOMONTH(DATE('[6]Input|General'!$G$12,MONTH('[6]Input|General'!$G$9),1),0),"Ok",IF(ISBLANK($F40),"Check","Ok")) -> Ok
C41: 2015-03-31 | F41: 106.8 | G41: 0.01328273245 | T41: =IF(C41>EOMONTH(DATE('[6]Input|General'!$G$12,MONTH('[6]Input|General'!$G$9),1),0),"Ok",IF(ISBLANK($F41),"Check","Ok")) -> Ok
C42: 2015-06-30 | F42: 107.5 | G42: 0.01510859301 | T42: =IF(C42>EOMONTH(DATE('[6]Input|General'!$G$12,MONTH('[6]Input|General'!$G$9),1),0),"Ok",IF(ISBLANK($F42),"Check","Ok")) -> Ok
C43: 2015-09-30 | F43: 108 | G43: 0.01503759398 | T43: =IF(C43>EOMONTH(DATE('[6]Input|General'!$G$12,MONTH('[6]Input|General'!$G$9),1),0),"Ok",IF(ISBLANK($F43),"Check","Ok")) -> Ok
C44: 2015-12-31 | F44: 108.4 | G44: 0.01688555347 | T44: =IF(C44>EOMONTH(DATE('[6]Input|General'!$G$12,MONTH('[6]Input|General'!$G$9),1),0),"Ok",IF(ISBLANK($F44),"Check","Ok")) -> Ok
C45: 2016-03-31 | F45: 108.2 | G45: 0.01310861423 | T45: =IF(C45>EOMONTH(DATE('[6]Input|General'!$G$12,MONTH('[6]Input|General'!$G$9),1),0),"Ok",IF(ISBLANK($F45),"Check","Ok")) -> Ok
C46: 2016-06-30 | F46: 108.6 | G46: 0.01023255814 | T46: =IF(C46>EOMONTH(DATE('[6]Input|General'!$G$12,MONTH('[6]Input|General'!$G$9),1),0),"Ok",IF(ISBLANK($F46),"Check","Ok")) -> Ok
C47: 2016-09-30 | F47: 109.4 | G47: 0.01296296296 | T47: =IF(C47>EOMONTH(DATE('[6]Input|General'!$G$12,MONTH('[6]Input|General'!$G$9),1),0),"Ok",IF(ISBLANK($F47),"Check","Ok")) -> Ok
C48: 2016-12-31 | F48: 110 | G48: 0.0147601476 | T48: =IF(C48>EOMONTH(DATE('[6]Input|General'!$G$12,MONTH('[6]Input|General'!$G$9),1),0),"Ok",IF(ISBLANK($F48),"Check","Ok")) -> Ok
C49: 2017-03-31 | F49: 110.5 | G49: 0.02125693161 | T49: =IF(C49>EOMONTH(DATE('[6]Input|General'!$G$12,MONTH('[6]Input|General'!$G$9),1),0),"Ok",IF(ISBLANK($F49),"Check","Ok")) -> Ok
C50: 2017-06-30 | F50: 110.7 | G50: 0.01933701657 | T50: =IF(C50>EOMONTH(DATE('[6]Input|General'!$G$12,MONTH('[6]Input|General'!$G$9),1),0),"Ok",IF(ISBLANK($F50),"Check","Ok")) -> Ok
C51: 2017-09-30 | F51: 111.4 | G51: 0.01828153565 | T51: =IF(C51>EOMONTH(DATE('[6]Input|General'!$G$12,MONTH('[6]Input|General'!$G$9),1),0),"Ok",IF(ISBLANK($F51),"Check","Ok")) -> Ok
C52: 2017-12-31 | F52: 112.1 | G52: 0.01909090909 | T52: =IF(C52>EOMONTH(DATE('[6]Input|General'!$G$12,MONTH('[6]Input|General'!$G$9),1),0),"Ok",IF(ISBLANK($F52),"Check","Ok")) -> Ok
C53: 2018-03-31 | F53: 112.6 | G53: 0.01900452489 | T53: =IF(C53>EOMONTH(DATE('[6]Input|General'!$G$12,MONTH('[6]Input|General'!$G$9),1),0),"Ok",IF(ISBLANK($F53),"Check","Ok")) -> Ok
C54: 2018-06-30 | F54: 113 | G54: 0.02077687444 | T54: =IF(C54>EOMONTH(DATE('[6]Input|General'!$G$12,MONTH('[6]Input|General'!$G$9),1),0),"Ok",IF(ISBLANK($F54),"Check","Ok")) -> Ok
C55: 2018-09-30 | F55: 113.5 | G55: 0.01885098743 | T55: =IF(C55>EOMONTH(DATE('[6]Input|General'!$G$12,MONTH('[6]Input|General'!$G$9),1),0),"Ok",IF(ISBLANK($F55),"Check","Ok")) -> Ok
C56: 2018-12-31 | F56: 114.1 | G56: 0.0178412132 | T56: =IF(C56>EOMONTH(DATE('[6]Input|General'!$G$12,MONTH('[6]Input|General'!$G$9),1),0),"Ok",IF(ISBLANK($F56),"Check","Ok")) -> Ok
C57: 2019-03-31 | F57: 114.1 | G57: 0.01332149201 | T57: =IF(C57>EOMONTH(DATE('[6]Input|General'!$G$12,MONTH('[6]Input|General'!$G$9),1),0),"Ok",IF(ISBLANK($F57),"Check","Ok")) -> Ok
C58: 2019-06-30 | F58: 114.8 | G58: 0.01592920354 | T58: =IF(C58>EOMONTH(DATE('[6]Input|General'!$G$12,MONTH('[6]Input|General'!$G$9),1),0),"Ok",IF(ISBLANK($F58),"Check","Ok")) -> Ok
C59: 2019-09-30 | F59: 115.4 | G59: 0.01674008811 | T59: =IF(C59>EOMONTH(DATE('[6]Input|General'!$G$12,MONTH('[6]Input|General'!$G$9),1),0),"Ok",IF(ISBLANK($F59),"Check","Ok")) -> Ok
C60: 2019-12-31 | F60: 116.2 | G60: 0.01840490798 | T60: =IF(C60>EOMONTH(DATE('[6]Input|General'!$G$12,MONTH('[6]Input|General'!$G$9),1),0),"Ok",IF(ISBLANK($F60),"Check","Ok")) -> Ok
C61: 2020-03-31 | F61: 116.6 | G61: 0.02191060473 | T61: =IF(C61>EOMONTH(DATE('[6]Input|General'!$G$12,MONTH('[6]Input|General'!$G$9),1),0),"Ok",IF(ISBLANK($F61),"Check","Ok")) -> Ok
C62: 2020-06-30 | F62: 114.4 | G62: -0.003484320557 | T62: =IF(C62>EOMONTH(DATE('[6]Input|General'!$G$12,MONTH('[6]Input|General'!$G$9),1),0),"Ok",IF(ISBLANK($F62),"Check","Ok")) -> Ok
C63: 2020-09-30 | F63: 116.2 | G63: 0.006932409012 | T63: =IF(C63>EOMONTH(DATE('[6]Input|General'!$G$12,MONTH('[6]Input|General'!$G$9),1),0),"Ok",IF(ISBLANK($F63),"Check","Ok")) -> Ok
A64: 118 | C64: 2020-12-31 | F64: 117.2 | G64: =IF(ISBLANK(F64),"",F64/F60-1) -> 0.008605851979 | T64: =IF(C64>EOMONTH(DATE('[6]Input|General'!$G$12,MONTH('[6]Input|General'!$G$9),1),0),"Ok",IF(ISBLANK($F64),"Check","Ok")) -> Ok
C65: 2021-03-31 | F65: 117.9 | G65: 0.01114922813 | T65: =IF(C65>EOMONTH(DATE('[6]Input|General'!$G$12,MONTH('[6]Input|General'!$G$9),1),0),"Ok",IF(ISBLANK($F65),"Check","Ok")) -> Ok
C66: 2021-06-30 | F66: 118.8 | G66: 0.03846153846 | T66: =IF(C66>EOMONTH(DATE('[6]Input|General'!$G$12,MONTH('[6]Input|General'!$G$9),1),0),"Ok",IF(ISBLANK($F66),"Check","Ok")) -> Ok
C67: 2021-09-30 | F67: 119.7 | G67: 0.03012048193 | T67: =IF(C67>EOMONTH(DATE('[6]Input|General'!$G$12,MONTH('[6]Input|General'!$G$9),1),0),"Ok",IF(ISBLANK($F67),"Check","Ok")) -> Ok
C68: 2021-12-31 | F68: 121.3 | G68: 0.03498293515 | T68: =IF(C68>EOMONTH(DATE('[6]Input|General'!$G$12,MONTH('[6]Input|General'!$G$9),1),0),"Ok",IF(ISBLANK($F68),"Check","Ok")) -> Ok
C69: 2022-03-31 | F69: 123.9 | G69: 0.05089058524 | T69: =IF(C69>EOMONTH(DATE('[6]Input|General'!$G$12,MONTH('[6]Input|General'!$G$9),1),0),"Ok",IF(ISBLANK($F69),"Check","Ok")) -> Ok
C70: 2022-06-30 | F70: 126.1 | G70: 0.06144781145 | T70: =IF(C70>EOMONTH(DATE('[6]Input|General'!$G$12,MONTH('[6]Input|General'!$G$9),1),0),"Ok",IF(ISBLANK($F70),"Check","Ok")) -> Ok
C71: 2022-09-30 | F71: 128.4 | G71: 0.07268170426 | T71: =IF(C71>EOMONTH(DATE('[6]Input|General'!$G$12,MONTH('[6]Input|General'!$G$9),1),0),"Ok",IF(ISBLANK($F71),"Check","Ok")) -> Ok
C72: 2022-12-31 | F72: 130.8 | G72: 0.07831821929 | T72: =IF(C72>EOMONTH(DATE('[6]Input|General'!$G$12,MONTH('[6]Input|General'!$G$9),1),0),"Ok",IF(ISBLANK($F72),"Check","Ok")) -> Ok
C73: 2023-03-31 | F73: 132.6 | G73: 0.07021791768 | T73: =IF(C73>EOMONTH(DATE('[6]Input|General'!$G$12,MONTH('[6]Input|General'!$G$9),1),0),"Ok",IF(ISBLANK($F73),"Check","Ok")) -> Ok
C74: 2023-06-30 | F74: 133.7 | G74: 0.06026962728 | T74: =IF(C74>EOMONTH(DATE('[6]Input|General'!$G$12,MONTH('[6]Input|General'!$G$9),1),0),"Ok",IF(ISBLANK($F74),"Check","Ok")) -> Ok
C75: 2023-09-30 | F75: 135.3 | G75: 0.05373831776 | T75: =IF(C75>EOMONTH(DATE('[6]Input|General'!$G$12,MONTH('[6]Input|General'!$G$9),1),0),"Ok",IF(ISBLANK($F75),"Check","Ok")) -> Ok
C76: 2023-12-31 | F76: 136.1 | G76: 0.04051987768 | T76: =IF(C76>EOMONTH(DATE('[6]Input|General'!$G$12,MONTH('[6]Input|General'!$G$9),1),0),"Ok",IF(ISBLANK($F76),"Check","Ok")) -> Ok
C77: 2024-03-31 | F77: 137.4 | G77: 0.03619909502 | T77: =IF(C77>EOMONTH(DATE('[6]Input|General'!$G$12,MONTH('[6]Input|General'!$G$9),1),0),"Ok",IF(ISBLANK($F77),"Check","Ok")) -> Ok
C78: 2024-06-30 | F78: 138.8 | G78: 0.038 | T78: =IF(C78>EOMONTH(DATE('[6]Input|General'!$G$12,MONTH('[6]Input|General'!$G$9),1),0),"Ok",IF(ISBLANK($F78),"Check","Ok")) -> Ok
C79: 2024-09-30 | F79: =AVERAGE(F78,F80) -> 139.4915 | G79: =IF(ISBLANK(F79),"",F79/F75-1) -> 0.03097930525 | T79: =IF(C79>EOMONTH(DATE('[6]Input|General'!$G$12,MONTH('[6]Input|General'!$G$9),1),0),"Ok",IF(ISBLANK($F79),"Check","Ok")) -> Ok
C80: 2024-12-31 | F80: =(F76*(1+G80)) -> 140.183 | G80: 0.03 | H80: Source: RBA Statement of Monetary Policy, Aug 2024 | T80: =IF(C80>EOMONTH(DATE('[6]Input|General'!$G$12,MONTH('[6]Input|General'!$G$9),1),0),"Ok",IF(ISBLANK($F80),"Check","Ok")) -> Ok
C81: 2025-03-31 | F81: =AVERAGE(F80,F82) -> 141.4347 | G81: =IF(ISBLANK(F81),"",F81/F77-1) -> 0.02936462882 | T81: =IF(C81>EOMONTH(DATE('[6]Input|General'!$G$12,MONTH('[6]Input|General'!$G$9),1),0),"Ok",IF(ISBLANK($F81),"Check","Ok")) -> Ok
C82: 2025-06-30 | F82: =(F78*(1+G82)) -> 142.6864 | G82: 0.028 | H82: Source: RBA Statement of Monetary Policy, Aug 2024 | T82: =IF(C82>EOMONTH(DATE('[6]Input|General'!$G$12,MONTH('[6]Input|General'!$G$9),1),0),"Ok",IF(ISBLANK($F82),"Check","Ok")) -> Ok
C83: 2025-09-30 | F83: =AVERAGE(F82,F84) -> 144.0280855 | G83: =IF(ISBLANK(F83),"",F83/F79-1) -> 0.03252230781 | T83: =IF(C83>EOMONTH(DATE('[6]Input|General'!$G$12,MONTH('[6]Input|General'!$G$9),1),0),"Ok",IF(ISBLANK($F83),"Check","Ok")) -> Ok
C84: 2025-12-31 | F84: =(F80*(1+G84)) -> 145.369771 | G84: 0.037 | H84: Source: RBA Statement of Monetary Policy, Aug 2024 | T84: =IF(C84>EOMONTH(DATE('[6]Input|General'!$G$12,MONTH('[6]Input|General'!$G$9),1),0),"Ok",IF(ISBLANK($F84),"Check","Ok")) -> Ok
C85: 2026-03-31 | F85: =AVERAGE(F84,F86) -> 146.3110679 | G85: =IF(ISBLANK(F85),"",F85/F81-1) -> 0.03447787495 | T85: =IF(C85>EOMONTH(DATE('[6]Input|General'!$G$12,MONTH('[6]Input|General'!$G$9),1),0),"Ok",IF(ISBLANK($F85),"Check","Ok")) -> Ok
C86: 2026-06-30 | F86: =(F82*(1+G86)) -> 147.2523648 | G86: 0.032 | H86: Source: RBA Statement of Monetary Policy, Aug 2024 | T86: =IF(C86>EOMONTH(DATE('[6]Input|General'!$G$12,MONTH('[6]Input|General'!$G$9),1),0),"Ok",IF(ISBLANK($F86),"Check","Ok")) -> Ok
C87: 2026-09-30 | F87: =AVERAGE(F86,F88) -> 148.2008749 | G87: =IF(ISBLANK(F87),"",F87/F83-1) -> 0.02897205367 | T87: =IF(C87>EOMONTH(DATE('[6]Input|General'!$G$12,MONTH('[6]Input|General'!$G$9),1),0),"Ok",IF(ISBLANK($F87),"Check","Ok")) -> Ok
C88: 2026-12-31 | F88: =(F84*(1+G88)) -> 149.149385 | G88: 0.026 | H88: Source: RBA Statement of Monetary Policy, Aug 2024 | T88: =IF(C88>EOMONTH(DATE('[6]Input|General'!$G$12,MONTH('[6]Input|General'!$G$9),1),0),"Ok",IF(ISBLANK($F88),"Check","Ok")) -> Ok
C89: 2027-03-31 | F89: =(F85*(1+G89)) -> 149.9688446 | G89: 0.025 | H89: AS: based on the RBA's LT forecast | T89: =IF(C89>EOMONTH(DATE('[6]Input|General'!$G$12,MONTH('[6]Input|General'!$G$9),1),0),"Ok",IF(ISBLANK($F89),"Check","Ok")) -> Ok
C90: 2027-06-30 | F90: =(F86*(1+G90)) -> 150.9336739 | G90: 0.025 | H90: AS: based on the RBA's LT forecast | T90: =IF(C90>EOMONTH(DATE('[6]Input|General'!$G$12,MONTH('[6]Input|General'!$G$9),1),0),"Ok",IF(ISBLANK($F90),"Check","Ok")) -> Ok
C91: 2027-09-30 | F91: 151.9058968 | G91: 0.025 | H91: AS: based on the RBA's LT forecast | T91: =IF(C91>EOMONTH(DATE('[6]Input|General'!$G$12,MONTH('[6]Input|General'!$G$9),1),0),"Ok",IF(ISBLANK($F91),"Check","Ok")) -> Ok
C92: 2027-12-31 | F92: 152.8781197 | G92: 0.025 | H92: AS: based on the RBA's LT forecast | T92: =IF(C92>EOMONTH(DATE('[6]Input|General'!$G$12,MONTH('[6]Input|General'!$G$9),1),0),"Ok",IF(ISBLANK($F92),"Check","Ok")) -> Ok
C93: 2028-03-31 | F93: 153.7180657 | G93: 0.025 | H93: AS: based on the RBA's LT forecast | T93: =IF(C93>EOMONTH(DATE('[6]Input|General'!$G$12,MONTH('[6]Input|General'!$G$9),1),0),"Ok",IF(ISBLANK($F93),"Check","Ok")) -> Ok
C94: 2028-06-30 | F94: 154.7070158 | G94: 0.025 | H94: AS: based on the RBA's LT forecast | T94: =IF(C94>EOMONTH(DATE('[6]Input|General'!$G$12,MONTH('[6]Input|General'!$G$9),1),0),"Ok",IF(ISBLANK($F94),"Check","Ok")) -> Ok
B96: End
